[Event "6th Tal Memorial"]
[Site "Moscow/Russia"]
[Date "2011.11.19"]
[Round "4.4"]
[White "Svidler, Peter"]
[Black "Gelfand, Boris"]
[Result "1/2-1/2"]
[ECO "A13"]
[WhiteElo "2755"]
[BlackElo "2744"]
[PlyCount "80"]
[EventDate "2011.??.??"]
[TimeControl "40/6000+30:20/3000+30:900+30"]

1. Nf3 {[%emt 0:00:30]} d5 {[%emt 0:00:30]} 2. c4 {[%emt 0:00:00]} e6 {[%emt 0:
01:30]} 3. g3 {[%emt 0:02:00]} dxc4 {[%emt 0:02:30]} 4. Qa4+ {[%emt 0:00:30]}
c6 {[%emt 0:04:30]} 5. Qxc4 {[%emt 0:00:30]} b5 {[%emt 0:01:30]} 6. Qc2 {[%emt
0:01:30]} Bb7 {[%emt 0:03:30]} 7. Bg2 {[%emt 0:02:30]} Nd7 {[%emt 0:04:30]} 8.
a4 {[%emt 0:03:30]} a6 {[%emt 0:02:30]} 9. O-O {[%emt 0:02:30]} Ngf6 {[%emt 0:
01:30]} 10. Nc3 {[%emt 0:01:30]} Be7 {[%emt 0:02:30]} 11. d4 {[%emt 0:02:30]}
O-O {[%emt 0:12:30]} 12. Rd1 {[%emt 0:09:30]} c5 {[%emt 0:03:30]} 13. axb5 {
[%emt 0:03:30]} axb5 {[%emt 0:00:30]} 14. Rxa8 {[%emt 0:00:30]} Qxa8 {[%emt 0:
00:30]} 15. Nxb5 {[%emt 0:03:30]} Be4 {[%emt 0:05:30]} 16. Qd2 {[%emt 0:03:30]}
cxd4 {[%emt 0:01:30]} 17. Nbxd4 {[%emt 0:03:30]} Rb8 {[%emt 0:05:30]} 18. Nh4 {
[%emt 0:19:30]} Bc5 {[%emt 0:15:30]} 19. Qe1 {[%emt 0:00:30]} h6 {[%emt 0:11:
30]} 20. Bxe4 {[%emt 0:20:30]} Nxe4 {[%emt 0:10:19]} 21. Be3 {[%emt 0:02:30]}
Ndf6 {[%emt 0:04:30]} 22. Nc2 {[%emt 0:02:30]} Rxb2 {[%emt 0:03:24]} 23. Bxc5 {
[%emt 0:00:30]} Rxc2 {[%emt 0:00:28]} 24. Bd4 {[%emt 0:04:30]} Qa6 {[%emt 0:00:
52]} 25. Kf1 {[%emt 0:04:46]} Nd5 {[%emt 0:05:39]} 26. f3 {[%emt 0:05:26]} Nd6
{[%emt 0:00:40]} 27. Rc1 {[%emt 0:01:50]} Qc4 {[%emt 0:00:27]} 28. Rxc2 {[%emt
0:00:19]} Qxc2 {[%emt 0:00:03]} 29. Ng2 {[%emt 0:03:15]} Nc4 {[%emt 0:00:52]}
30. Qa1 {[%emt 0:01:39]} Nd2+ {[%emt 0:04:02]} 31. Kf2 {[%emt 0:00:20]} Nb3 {
[%emt 0:00:14]} 32. Qb2 {[%emt 0:00:26]} Nxd4 {[%emt 0:01:04]} 33. Qxd4 {[%emt
0:00:02]} Qc3 {[%emt 0:00:53]} 34. Qxc3 {[%emt 0:00:04]} Nxc3 {[%emt 0:00:02]}
35. Nf4 {[%emt 0:00:10]} Kf8 {[%emt 0:00:05]} 36. Nd3 {[%emt 0:00:06]} Ke7 {
[%emt 0:00:04]} 37. e4 {[%emt 0:00:13]} Kd6 {[%emt 0:00:11]} 38. Ke3 {[%emt 0:
00:05]} e5 {[%emt 0:00:12]} 39. Kd2 {[%emt 0:00:08]} Nb5 {[%emt 0:00:03]} 40.
Ke3 {[%emt 0:00:00]} Nc7 {[%emt 0:00:00]} 1/2-1/2

[Event "6th Tal Memorial"]
[Site "Moscow/Russia"]
[Date "2011.11.19"]
[Round "4.1"]
[White "Aronian, Levon"]
[Black "Anand, Viswanathan"]
[Result "1/2-1/2"]
[ECO "D37"]
[WhiteElo "2802"]
[BlackElo "2811"]
[PlyCount "119"]
[EventDate "2011.??.??"]
[TimeControl "40/6000+30:20/3000+30:900+30"]

1. d4 {[%emt 0:00:30]} Nf6 {[%emt 0:00:30]} 2. c4 {[%emt 0:00:00]} e6 {[%emt 0:
00:00]} 3. Nf3 {[%emt 0:00:00]} d5 {[%emt 0:00:00]} 4. Nc3 {[%emt 0:00:30]} Be7
{[%emt 0:00:00]} 5. Bf4 {[%emt 0:00:00]} O-O {[%emt 0:00:00]} 6. e3 {[%emt 0:
00:00]} Nbd7 {[%emt 0:00:30]} 7. Be2 {[%emt 0:00:00]} dxc4 {[%emt 0:01:30]} 8.
O-O {[%emt 0:01:00]} Nd5 {[%emt 0:13:30]} 9. Bxc4 {[%emt 0:00:00]} Nxf4 {[%emt
0:00:30]} 10. exf4 {[%emt 0:00:00]} c5 {[%emt 0:00:30]} 11. dxc5 {[%emt 0:00:
30]} Qc7 {[%emt 0:01:30]} 12. g3 {[%emt 0:00:00]} Qxc5 {[%emt 0:01:30]} 13. Qe2
{[%emt 0:01:00]} Nb6 {[%emt 0:05:30]} 14. Bd3 {[%emt 0:05:30]} Qh5 {[%emt 0:08:
30]} 15. Qe3 {[%emt 0:12:30]} Bf6 {[%emt 0:08:30]} 16. Ng5 {[%emt 0:15:30]}
Bxc3 {[%emt 0:12:30]} 17. bxc3 {[%emt 0:03:30]} h6 {[%emt 0:00:30]} 18. Be2 {
[%emt 0:01:30]} Qg6 {[%emt 0:00:00]} 19. Nf3 {[%emt 0:00:30]} Qf6 {[%emt 0:07:
00]} 20. Ne5 {[%emt 0:03:30]} Bd7 {[%emt 0:03:30]} 21. c4 {[%emt 0:02:30]} Qe7
{[%emt 0:02:30]} 22. Qe4 {[%emt 0:12:30]} Bc6 {[%emt 0:04:30]} 23. Nxc6 {[%emt
0:01:30]} bxc6 {[%emt 0:00:30]} 24. Qxc6 {[%emt 0:00:00]} Rac8 {[%emt 0:00:30]}
25. Qe4 {[%emt 0:00:00]} Rc7 {[%emt 0:00:30]} 26. Rfd1 {[%emt 0:01:30]} Rfc8 {
[%emt 0:00:30]} 27. Rd4 {[%emt 0:00:30]} g6 {[%emt 0:00:30]} 28. Rad1 {[%emt 0:
00:30]} Qf6 {[%emt 0:01:30]} 29. Qc2 {[%emt 0:02:30]} Rc5 {[%emt 0:04:30]} 30.
Qb3 {[%emt 0:02:30]} Qe7 {[%emt 0:02:30]} 31. Bf1 {[%emt 0:06:30]} R5c7 {[%emt
0:03:30]} 32. Qb5 {[%emt 0:01:30]} Rc5 {[%emt 0:08:30]} 33. Qb4 {[%emt 0:01:30]
} R5c7 {[%emt 0:02:44]} 34. Qxe7 {[%emt 0:04:30]} Rxe7 {[%emt 0:00:07]} 35.
Rd8+ {[%emt 0:00:00]} Rxd8 {[%emt 0:00:05]} 36. Rxd8+ {[%emt 0:00:00]} Kg7 {
[%emt 0:00:20]} 37. c5 {[%emt 0:00:30]} Nd5 {[%emt 0:04:28]} 38. Bc4 {[%emt 0:
02:30]} Nf6 {[%emt 0:01:12]} 39. Rc8 {[%emt 0:02:30]} Rd7 {[%emt 0:00:26]} 40.
Bb5 {[%emt 0:00:00]} Rd1+ {[%emt 0:00:00]} 41. Kg2 {[%emt 0:08:00]} Ra1 {[%emt
0:13:08]} 42. a4 {[%emt 0:02:30]} a6 {[%emt 0:00:00]} 43. Bc6 {[%emt 0:01:30]}
Rc1 {[%emt 0:03:00]} 44. Ra8 {[%emt 0:16:30]} Rxc5 {[%emt 0:00:30]} 45. Rxa6 {
[%emt 0:00:00]} Rc2 {[%emt 0:02:30]} 46. a5 {[%emt 0:05:00]} Ng4 {[%emt 0:03:
30]} 47. Be8 {[%emt 0:01:30]} Kf8 {[%emt 0:01:30]} 48. Ra8 {[%emt 0:00:30]}
Rxf2+ {[%emt 0:00:30]} 49. Kg1 {[%emt 0:00:00]} Ra2 {[%emt 0:01:30]} 50. Bb5+ {
[%emt 0:03:00]} Kg7 {[%emt 0:00:30]} 51. a6 {[%emt 0:01:30]} Nxh2 {[%emt 0:01:
30]} 52. Rc8 {[%emt 0:03:30]} Nf3+ {[%emt 0:05:30]} 53. Kf1 {[%emt 0:00:30]}
Nd4 {[%emt 0:00:30]} 54. Bc4 {[%emt 0:00:30]} Ra3 {[%emt 0:00:30]} 55. Rc7 {
[%emt 0:02:30]} Nf5 {[%emt 0:02:30]} 56. Bxe6 {[%emt 0:03:30]} Rxa6 {[%emt 0:
01:30]} 57. Bxf7 {[%emt 0:01:30]} Kf6 {[%emt 0:01:30]} 58. Bc4 {[%emt 0:00:30]}
Ne3+ {[%emt 0:00:00]} 59. Kf2 {[%emt 0:00:30]} Nxc4 {[%emt 0:00:00]} 60. Rxc4 {
[%emt 0:00:30]} 1/2-1/2

[Event "6th Tal Memorial"]
[Site "Moscow/Russia"]
[Date "2011.11.19"]
[Round "4.2"]
[White "Kramnik, Vladimir"]
[Black "Ivanchuk, Vassily"]
[Result "1/2-1/2"]
[ECO "D15"]
[WhiteElo "2800"]
[BlackElo "2775"]
[PlyCount "113"]
[EventDate "2011.??.??"]
[TimeControl "40/6000+30:20/3000+30:900+30"]

1. Nf3 {[%emt 0:00:30]} d5 {[%emt 0:00:30]} 2. d4 {[%emt 0:00:00]} Nf6 {[%emt
0:00:00]} 3. c4 {[%emt 0:00:00]} c6 {[%emt 0:00:00]} 4. Nc3 {[%emt 0:00:30]} a6
{[%emt 0:00:00]} 5. e3 {[%emt 0:01:30]} b5 {[%emt 0:00:00]} 6. b3 {[%emt 0:00:
30]} Bg4 {[%emt 0:02:30]} 7. Qc2 {[%emt 0:01:30]} e6 {[%emt 0:08:30]} 8. Ne5 {
[%emt 0:01:30]} Bf5 {[%emt 0:00:30]} 9. Bd3 {[%emt 0:00:00]} Bxd3 {[%emt 0:00:
30]} 10. Nxd3 {[%emt 0:00:00]} dxc4 {[%emt 0:13:30]} 11. bxc4 {[%emt 0:00:30]}
bxc4 {[%emt 0:00:30]} 12. Ne5 {[%emt 0:00:30]} Nbd7 {[%emt 0:01:30]} 13. O-O {
[%emt 0:00:30]} Nxe5 {[%emt 0:05:30]} 14. dxe5 {[%emt 0:01:30]} Nd5 {[%emt 0:
00:30]} 15. Rd1 {[%emt 0:13:30]} Qa5 {[%emt 0:17:30]} 16. Ne4 {[%emt 0:01:30]}
c3 {[%emt 0:00:30]} 17. Rb1 {[%emt 0:11:30]} Rd8 {[%emt 0:03:30]} 18. Rd4 {
[%emt 0:21:30]} Qc7 {[%emt 0:07:30]} 19. Qa4 {[%emt 0:06:30]} a5 {[%emt 0:06:
30]} 20. g3 {[%emt 0:08:30]} Bb4 {[%emt 0:05:30]} 21. Nd6+ {[%emt 0:01:30]} Kf8
{[%emt 0:08:30]} 22. e4 {[%emt 0:05:30]} Nb6 {[%emt 0:00:30]} 23. Qc2 {[%emt 0:
04:30]} Nd7 {[%emt 0:03:30]} 24. Nc4 {[%emt 0:06:30]} h6 {[%emt 0:04:34]} 25.
a3 {[%emt 0:01:30]} Bc5 {[%emt 0:00:33]} 26. Rd3 {[%emt 0:03:03]} Kg8 {[%emt 0:
00:23]} 27. Qxc3 {[%emt 0:02:31]} Kh7 {[%emt 0:00:30]} 28. Bf4 {[%emt 0:00:27]}
Rb8 {[%emt 0:00:30]} 29. Rbd1 {[%emt 0:01:34]} Rhd8 {[%emt 0:00:00]} 30. Qd2 {
[%emt 0:04:25]} Nb6 {[%emt 0:01:00]} 31. Rxd8 {[%emt 0:01:34]} Nxc4 {[%emt 0:
00:30]} 32. Qd7 {[%emt 0:00:47]} Qxd8 {[%emt 0:04:23]} 33. Qxd8 {[%emt 0:00:46]
} Rxd8 {[%emt 0:00:01]} 34. Rxd8 {[%emt 0:00:03]} Bxa3 {[%emt 0:00:24]} 35. Rd4
{[%emt 0:01:35]} Nb6 {[%emt 0:00:20]} 36. Be3 {[%emt 0:02:14]} c5 {[%emt 0:01:
19]} 37. Rd1 {[%emt 0:02:43]} Nc4 {[%emt 0:04:29]} 38. Bxc5 {[%emt 0:04:21]}
Bxc5 {[%emt 0:00:08]} 39. Rc1 {[%emt 0:00:04]} Bxf2+ {[%emt 0:00:07]} 40. Kxf2
{[%emt 0:00:00]} Nxe5 {[%emt 0:00:00]} 41. Ke2 {[%emt 0:00:53]} Kg6 {[%emt 0:
02:49]} 42. Rc5 {[%emt 0:02:30]} Kf6 {[%emt 0:01:30]} 43. Rxa5 {[%emt 0:00:30]}
g5 {[%emt 0:02:30]} 44. h3 {[%emt 0:04:30]} h5 {[%emt 0:04:30]} 45. Rc5 {[%emt
0:02:30]} Ng6 {[%emt 0:00:30]} 46. Kf3 {[%emt 0:00:30]} Ne5+ {[%emt 0:00:30]}
47. Ke3 {[%emt 0:00:30]} Ng6 {[%emt 0:00:00]} 48. Ra5 {[%emt 0:08:30]} h4 {
[%emt 0:03:00]} 49. Kf2 {[%emt 0:00:30]} hxg3+ {[%emt 0:00:30]} 50. Kxg3 {
[%emt 0:00:30]} Ne5 {[%emt 0:00:00]} 51. Rb5 {[%emt 0:00:30]} Nd3 {[%emt 0:00:
00]} 52. Rb8 {[%emt 0:02:30]} Kg7 {[%emt 0:05:30]} 53. Kg4 {[%emt 0:03:30]}
Nf2+ {[%emt 0:00:00]} 54. Kxg5 {[%emt 0:00:00]} Nxh3+ {[%emt 0:00:00]} 55. Kg4
{[%emt 0:00:00]} Nf2+ {[%emt 0:00:00]} 56. Kf4 {[%emt 0:00:30]} Nd3+ {[%emt 0:
00:00]} 57. Ke3 {[%emt 0:00:30]} 1/2-1/2

[Event "6th Tal Memorial"]
[Site "Moscow/Russia"]
[Date "2011.11.19"]
[Round "4.5"]
[White "Nepomniachtchi, Ian"]
[Black "Nakamura, Hikaru"]
[Result "1/2-1/2"]
[ECO "B70"]
[WhiteElo "2730"]
[BlackElo "2758"]
[PlyCount "170"]
[EventDate "2011.??.??"]
[TimeControl "40/6000+30:20/3000+30:900+30"]

1. e4 {[%emt 0:00:30]} c5 {[%emt 0:00:30]} 2. Nf3 {[%emt 0:00:00]} d6 {[%emt 0:
00:00]} 3. d4 {[%emt 0:00:00]} cxd4 {[%emt 0:00:00]} 4. Nxd4 {[%emt 0:00:00]}
Nf6 {[%emt 0:00:00]} 5. Nc3 {[%emt 0:00:00]} g6 {[%emt 0:00:00]} 6. Be2 {[%emt
0:05:30]} Bg7 {[%emt 0:00:30]} 7. O-O {[%emt 0:00:00]} O-O {[%emt 0:00:30]} 8.
Re1 {[%emt 0:01:00]} Nc6 {[%emt 0:00:00]} 9. Nb3 {[%emt 0:00:30]} Be6 {[%emt 0:
01:00]} 10. Bf1 {[%emt 0:00:30]} a5 {[%emt 0:00:30]} 11. Nd2 {[%emt 0:08:30]}
a4 {[%emt 0:08:30]} 12. Ndb1 {[%emt 0:01:30]} Ra5 {[%emt 0:15:30]} 13. Na3 {
[%emt 0:02:30]} d5 {[%emt 0:01:30]} 14. exd5 {[%emt 0:01:30]} Nxd5 {[%emt 0:06:
30]} 15. Ncb5 {[%emt 0:01:30]} Qc8 {[%emt 0:23:30]} 16. c3 {[%emt 0:01:30]} Rd8
{[%emt 0:03:30]} 17. Qe2 {[%emt 0:00:30]} Nc7 {[%emt 0:02:30]} 18. Rd1 {[%emt
0:06:30]} Nxb5 {[%emt 0:06:30]} 19. Nxb5 {[%emt 0:00:30]} Ne5 {[%emt 0:00:30]}
20. Na3 {[%emt 0:07:30]} Rad5 {[%emt 0:09:30]} 21. Rxd5 {[%emt 0:00:30]} Rxd5 {
[%emt 0:00:30]} 22. Be3 {[%emt 0:02:30]} Ng4 {[%emt 0:03:30]} 23. h3 {[%emt 0:
04:30]} Nxe3 {[%emt 0:00:30]} 24. Qxe3 {[%emt 0:00:00]} Qc6 {[%emt 0:02:30]}
25. Nc2 {[%emt 0:05:00]} Qc7 {[%emt 0:06:41]} 26. a3 {[%emt 0:02:30]} Be5 {
[%emt 0:02:49]} 27. Nb4 {[%emt 0:01:30]} Rd8 {[%emt 0:00:06]} 28. Nd3 {[%emt 0:
00:30]} Bd6 {[%emt 0:00:05]} 29. Re1 {[%emt 0:01:30]} Bf5 {[%emt 0:01:41]} 30.
g3 {[%emt 0:05:30]} Bxd3 {[%emt 0:07:54]} 31. Bxd3 {[%emt 0:03:30]} Bc5 {[%emt
0:00:16]} 32. Qf3 {[%emt 0:00:30]} Rd6 {[%emt 0:00:19]} 33. Re4 {[%emt 0:01:30]
} Rb6 {[%emt 0:04:08]} 34. Bc4 {[%emt 0:01:30]} e6 {[%emt 0:00:05]} 35. Re2 {
[%emt 0:00:30]} Bxa3 {[%emt 0:00:29]} 36. Bxe6 {[%emt 0:00:30]} Bxb2 {[%emt 0:
01:18]} 37. Bxf7+ {[%emt 0:01:30]} Qxf7 {[%emt 0:00:36]} 38. Qd3 {[%emt 0:00:
30]} Re6 {[%emt 0:03:45]} 39. Qd8+ {[%emt 0:00:30]} Kg7 {[%emt 0:00:30]} 40.
Qd4+ {[%emt 0:00:00]} Kg8 {[%emt 0:00:00]} 41. Qd8+ {[%emt 0:01:00]} Qf8 {
[%emt 0:39:40]} 42. Qd5 {[%emt 0:00:30]} Qd6 {[%emt 0:00:04]} 43. Qxd6 {[%emt
0:01:30]} Rxd6 {[%emt 0:00:19]} 44. Rxb2 {[%emt 0:00:00]} a3 {[%emt 0:00:55]}
45. Ra2 {[%emt 0:00:00]} Ra6 {[%emt 0:00:04]} 46. Kf1 {[%emt 0:00:30]} Kf7 {
[%emt 0:01:09]} 47. Ke2 {[%emt 0:00:30]} Ke6 {[%emt 0:00:25]} 48. Kd3 {[%emt 0:
00:30]} Kd5 {[%emt 0:00:06]} 49. f4 {[%emt 0:00:30]} h5 {[%emt 0:03:27]} 50. g4
{[%emt 0:19:30]} h4 {[%emt 0:00:05]} 51. c4+ {[%emt 0:08:30]} Kc5 {[%emt 0:00:
04]} 52. Kc3 {[%emt 0:00:00]} Re6 {[%emt 0:01:56]} 53. Rf2 {[%emt 0:00:00]}
Re3+ {[%emt 0:00:43]} 54. Kc2 {[%emt 0:00:30]} Kxc4 {[%emt 0:05:07]} 55. f5 {
[%emt 0:00:30]} g5 {[%emt 0:03:39]} 56. f6 {[%emt 0:00:00]} Re8 {[%emt 0:00:01]
} 57. f7 {[%emt 0:00:00]} Rf8 {[%emt 0:00:00]} 58. Kb1 {[%emt 0:01:30]} Kd5 {
[%emt 0:01:18]} 59. Rf5+ {[%emt 0:00:30]} Ke6 {[%emt 0:00:05]} 60. Rxg5 {[%emt
0:00:00]} Rxf7 {[%emt 0:00:00]} 61. Rh5 {[%emt 0:01:00]} b5 {[%emt 0:04:42]}
62. Rxb5 {[%emt 0:00:30]} Rf3 {[%emt 0:01:03]} 63. Rb6+ {[%emt 0:03:30]} Ke5 {
[%emt 0:01:16]} 64. Rb5+ {[%emt 0:01:30]} Ke6 {[%emt 0:02:30]} 65. Rb6+ {[%emt
0:00:00]} Kd5 {[%emt 0:00:17]} 66. g5 {[%emt 0:00:00]} Rxh3 {[%emt 0:01:12]}
67. Rb4 {[%emt 0:00:00]} Ke5 {[%emt 0:01:06]} 68. g6 {[%emt 0:00:00]} Kf6 {
[%emt 0:00:05]} 69. Rg4 {[%emt 0:00:00]} Kg7 {[%emt 0:00:03]} 70. Ka2 {[%emt 0:
00:00]} Kh8 {[%emt 0:00:02]} 71. Rf4 {[%emt 0:00:30]} Kg7 {[%emt 0:06:53]} 72.
Rg4 {[%emt 0:00:30]} Rh1 {[%emt 0:01:07]} 73. Rb4 {[%emt 0:04:30]} h3 {[%emt 0:
01:57]} 74. Rb3 {[%emt 0:00:30]} Kxg6 {[%emt 0:00:20]} 75. Rg3+ {[%emt 0:01:30]
} Kf5 {[%emt 0:00:23]} 76. Rc3 {[%emt 0:00:30]} Ke5 {[%emt 0:00:32]} 77. Rxa3 {
[%emt 0:01:30]} Rh2+ {[%emt 0:00:32]} 78. Ka1 {[%emt 0:00:00]} Kf4 {[%emt 0:00:
04]} 79. Rb3 {[%emt 0:00:00]} Rh1+ {[%emt 0:01:39]} 80. Ka2 {[%emt 0:00:00]}
Rh2+ {[%emt 0:00:12]} 81. Ka1 {[%emt 0:00:00]} Rh1+ {[%emt 0:00:54]} 82. Ka2 {
[%emt 0:00:30]} Kg4 {[%emt 0:00:34]} 83. Rb4+ {[%emt 0:00:00]} Kg3 {[%emt 0:00:
30]} 84. Rb3+ {[%emt 0:00:00]} Kg4 {[%emt 0:00:02]} 85. Rb4+ {[%emt 0:00:00]}
Kg3 {[%emt 0:00:03]} 1/2-1/2

[Event "6th Tal Memorial"]
[Site "Moscow/Russia"]
[Date "2011.11.19"]
[Round "4.3"]
[White "Carlsen, Magnus"]
[Black "Karjakin, Sergey"]
[Result "1/2-1/2"]
[ECO "E32"]
[WhiteElo "2826"]
[BlackElo "2763"]
[PlyCount "134"]
[EventDate "2011.??.??"]
[TimeControl "40/6000+30:20/3000+30:900+30"]

1. d4 {[%emt 0:00:30]} Nf6 {[%emt 0:00:30]} 2. c4 {[%emt 0:00:00]} e6 {[%emt 0:
00:00]} 3. Nf3 {[%emt 0:00:00]} b6 {[%emt 0:00:00]} 4. Nc3 {[%emt 0:00:30]} Bb4
{[%emt 0:00:30]} 5. Qc2 {[%emt 0:00:30]} Bb7 {[%emt 0:00:30]} 6. a3 {[%emt 0:
00:00]} Bxc3+ {[%emt 0:00:30]} 7. Qxc3 {[%emt 0:00:00]} O-O {[%emt 0:00:00]} 8.
Bg5 {[%emt 0:03:00]} d6 {[%emt 0:01:30]} 9. Nd2 {[%emt 0:00:30]} Nbd7 {[%emt 0:
01:30]} 10. f3 {[%emt 0:00:30]} Rc8 {[%emt 0:11:30]} 11. e4 {[%emt 0:00:30]} h6
{[%emt 0:00:30]} 12. Bh4 {[%emt 0:00:30]} c5 {[%emt 0:01:30]} 13. Bd3 {[%emt 0:
02:30]} cxd4 {[%emt 0:03:30]} 14. Qxd4 {[%emt 0:00:30]} Nc5 {[%emt 0:00:30]}
15. Be2 {[%emt 0:14:30]} e5 {[%emt 0:01:30]} 16. Qf2 {[%emt 0:01:30]} Ne6 {
[%emt 0:04:30]} 17. O-O {[%emt 0:02:30]} g5 {[%emt 0:09:30]} 18. Bg3 {[%emt 0:
00:30]} Nd4 {[%emt 0:01:30]} 19. Rfd1 {[%emt 0:11:00]} Nh5 {[%emt 0:01:30]} 20.
Bd3 {[%emt 0:23:30]} Nf4 {[%emt 0:12:30]} 21. Qf1 {[%emt 0:03:30]} Qf6 {[%emt
0:10:30]} 22. Bf2 {[%emt 0:02:30]} Nde6 {[%emt 0:02:30]} 23. Bc2 {[%emt 0:03:
30]} Qg6 {[%emt 0:04:30]} 24. g3 {[%emt 0:08:30]} Nh5 {[%emt 0:01:30]} 25. Qe2
{[%emt 0:04:30]} g4 {[%emt 0:06:30]} 26. fxg4 {[%emt 0:04:30]} Nf6 {[%emt 0:00:
30]} 27. h3 {[%emt 0:00:30]} Ng5 {[%emt 0:01:30]} 28. Kh2 {[%emt 0:01:30]} d5 {
[%emt 0:14:30]} 29. Be3 {[%emt 0:01:30]} d4 {[%emt 0:04:30]} 30. Bxg5 {[%emt 0:
00:30]} hxg5 {[%emt 0:00:30]} 31. Rf1 {[%emt 0:02:30]} Kg7 {[%emt 0:10:36]} 32.
Rf5 {[%emt 0:02:30]} Rh8 {[%emt 0:00:38]} 33. Kg2 {[%emt 0:03:30]} Nd7 {[%emt
0:02:08]} 34. Nf3 {[%emt 0:02:30]} f6 {[%emt 0:00:13]} 35. h4 {[%emt 0:00:30]}
Qh6 {[%emt 0:01:37]} 36. Rf1 {[%emt 0:02:30]} Rh7 {[%emt 0:05:52]} 37. b4 {
[%emt 0:06:44]} Kh8 {[%emt 0:03:35]} 38. Rh1 {[%emt 0:01:03]} gxh4 {[%emt 0:06:
49]} 39. Rxh4 {[%emt 0:02:41]} Qe3 {[%emt 0:00:03]} 40. Qxe3 {[%emt 0:00:00]}
dxe3 {[%emt 0:00:00]} 41. Bd3 {[%emt 0:01:00]} Ba6 {[%emt 0:10:26]} 42. Rxh7+ {
[%emt 0:03:30]} Kxh7 {[%emt 0:00:30]} 43. g5 {[%emt 0:00:30]} Bxc4 {[%emt 0:04:
30]} 44. Bxc4 {[%emt 0:00:30]} Rxc4 {[%emt 0:00:30]} 45. gxf6 {[%emt 0:00:30]}
e2 {[%emt 0:02:30]} 46. Kf2 {[%emt 0:05:00]} Rxe4 {[%emt 0:01:30]} 47. f7 {
[%emt 0:01:30]} Kg7 {[%emt 0:06:30]} 48. Ke1 {[%emt 0:00:00]} Kf8 {[%emt 0:00:
30]} 49. Ng5 {[%emt 0:06:00]} Rg4 {[%emt 0:00:30]} 50. Nh7+ {[%emt 0:05:30]}
Ke7 {[%emt 0:01:30]} 51. Rg5 {[%emt 0:01:30]} Rxg5 {[%emt 0:09:30]} 52. Nxg5 {
[%emt 0:00:30]} a5 {[%emt 0:00:00]} 53. b5 {[%emt 0:04:30]} Kf6 {[%emt 0:02:21]
} 54. Ne4+ {[%emt 0:01:30]} Kxf7 {[%emt 0:00:32]} 55. Kxe2 {[%emt 0:00:30]} Ke6
{[%emt 0:00:58]} 56. g4 {[%emt 0:00:30]} Kd5 {[%emt 0:03:40]} 57. Kd3 {[%emt 0:
11:30]} Nf8 {[%emt 0:00:57]} 58. g5 {[%emt 0:07:30]} Ne6 {[%emt 0:02:10]} 59.
Ke3 {[%emt 0:01:30]} Kc4 {[%emt 0:06:20]} 60. g6 {[%emt 0:04:30]} a4 {[%emt 0:
07:26]} 61. Nd2+ {[%emt 0:13:00]} Kd5 {[%emt 0:11:27]} 62. Nb1 {[%emt 0:04:30]}
Nd4 {[%emt 0:00:42]} 63. Kd3 {[%emt 0:06:34]} Ke6 {[%emt 0:02:13]} 64. Nc3 {
[%emt 0:00:26]} Kf6 {[%emt 0:00:30]} 65. Ke4 {[%emt 0:00:30]} Nc2 {[%emt 0:00:
23]} 66. Nb1 {[%emt 0:00:30]} Nd4 {[%emt 0:00:07]} 67. Nc3 {[%emt 0:00:00]} Nc2
{[%emt 0:00:05]} 1/2-1/2